fUSD/lending_fUSD_20240630
["ID","MTS","AMOUNT","RATE_DAILY","PERIOD"]
[330779279,1719775847007,-617.95550003,0.0002,2]
[330779281,1719775847018,-14293.96804228,0.0002,2]
[330779283,1719775847028,-257.0,0.0002,2]
[330779285,1719775847038,-981.77492764,0.0002,2]
[330779287,1719775847049,-611.92174106,0.0002,2]
[330779289,1719775847059,-150.0,0.0002,2]
[330779291,1719775847068,-742.4489501,0.0002,2]
[330779293,1719775847080,-33.20583096,0.0002,2]
[330779295,1719775847090,-775.65478106,0.0002,2]
[330779297,1719775847100,-244.254388,0.0002,2]
[330779300,1719775847111,-531.40039306,0.0002,2]
[330779302,1719775847121,-775.65478106,0.0002,2]
[330779304,1719775847131,-775.65478106,0.0002,2]
[330779306,1719775847141,-775.65478106,0.0002,2]
[330779308,1719775847150,-775.65478106,0.0002,2]
[330779310,1719775847160,-775.65478106,0.0002,2]
[330779312,1719775847170,-775.65478106,0.0002,2]
[330779314,1719775847180,-775.65478106,0.0002,2]
[330779315,1719775847189,-26.03004088,0.0002,2]
[330779318,1719775847207,-162.16071363,0.00018,2]
[330779320,1719775847217,-505.07727877,0.0002,2]
[330779427,1719776017376,30988.46892965,0.00011199,2]
[330779428,1719776051783,2235.54367464,0.00011,2]
[330779430,1719776071107,1264.71015021,6.94e-05,2]
[330779431,1719776075408,7549.40604158,0.00011199,2]
[330779436,1719776142180,5254.20901217,0.000112,2]
[330779438,1719776165659,7549.40604158,0.00011199,2]
[330779439,1719776178102,4989.41324129,0.000112,2]
[330779440,1719776179412,7549.40604158,0.000112,2]
[330779443,1719776233680,3392.48845374,0.00011199,2]
[330779444,1719776233742,210.12119873,0.0001,2]
[330779447,1719776289085,2828.06320888,0.00011199,2]
[330779448,1719776296824,4499.70138566,0.00011199,2]
[330779449,1719776330435,3392.48845374,0.00011199,2]
[330779450,1719776343520,294.68098322,0.00011199,2]
[330779451,1719776376446,7549.40604158,0.00011199,2]
[330779453,1719776391433,7549.40604158,0.00011199,2]
[330779454,1719776393380,1070.42703277,0.00011199,2]
[330779455,1719776394274,1054.76250323,0.00011199,2]
[330779456,1719776502444,7549.40604158,0.00011199,2]
[330779457,1719776542953,3392.48845374,0.00011199,2]
[330779458,1719776553946,3392.48845374,0.00011199,2]
[330779459,1719776560007,-367.69,0.00011681,2]
[330779460,1719776560030,-411.5794998,0.00011699,2]
[330779461,1719776560051,-1947.49945708,0.00011799,2]
[330779462,1719776560074,-7273.23104312,0.000118,2]
[330779463,1719776560791,-10000.0,0.000118,2]
[330779464,1719776561256,-10000.0,0.000118,2]
[330779465,1719776579674,-10000.0,0.000118,2]
[330779466,1719776591071,-10000.0,0.000118,2]
[330779467,1719776593613,2825.72260932,0.00011199,2]
[330779468,1719776602801,-7584.6999814,0.000118,2]
[330779469,1719776615610,788.1795791,0.00011199,2]
[330779470,1719776644125,254.05078128,0.00011199,2]
[330779471,1719776644905,754.06054418,0.00011199,2]
[330779473,1719776674916,619.00911404,0.00011199,2]
[330779474,1719776674942,135.05143014,0.00011199,2]
[330779475,1719776691674,150.13996471,0.00011741,2]
[330779476,1719776694783,158.75735299,0.00011199,2]
[330779477,1719776695330,290.37415106,0.00011199,2]
[330779478,1719776701137,158.92298885,0.00011199,2]
[330779479,1719776702362,202.05047868,0.00011199,2]
[330779480,1719776708467,6901.63346703,0.00011199,2]
[330779481,1719776718036,155.0,0.00011199,2]
[330779482,1719776719793,1054.76250323,0.00011199,2]
[330779483,1719776746132,181.08184228,0.00011199,2]
[330779484,1719776747684,316.14,0.00011199,2]
[330779485,1719776748076,155.0,0.00011199,2]
[330779486,1719776749800,141.08582103,0.00011199,2]
[330779487,1719776749825,913.6766822,0.00011199,2]
[330779488,1719776775958,3388.91049904,0.00011199,2]
[330779489,1719776789029,169.23580754,0.00011199,2]
[330779490,1719776790958,3388.91049904,0.00011199,2]
[330779491,1719776793754,2139.26651218,0.00011199,2]
[330779492,1719776793777,883.55056986,0.00011199,2]
[330779493,1719776794174,2788.76610136,0.00011199,2]
[330779494,1719776799466,155.0,0.00011199,2]
[330779495,1719776802160,-264.90596154,0.00012211,2]
[330779496,1719776807539,158.91375319,0.00011199,2]
[330779497,1719776816546,3460.14760246,0.00011199,2]
[330779499,1719776862117,283.76460163,0.00011199,2]
[330779505,1719776923545,2004.4104095,0.00011199,2]
[330779506,1719776925286,265.446962,0.00011199,2]
[330779507,1719776925310,419.2385802,0.00011199,2]
[330779511,1719776960981,155.0,0.00011199,4]
[330779512,1719776972024,533.11260756,0.00011199,2]
[330779517,1719776978912,820.81121981,0.00011199,2]
[330779522,1719777002898,150.0,0.00011199,2]
[330779523,1719777003092,150.0,0.00011199,2]
[330779524,1719777003273,150.0,0.00011199,2]
[330779525,1719777003476,150.0,0.00011199,2]
[330779526,1719777003678,150.0,0.00011199,2]
[330779527,1719777003873,150.0,0.00011199,2]
[330779528,1719777004073,150.0,0.00011199,2]
[330779529,1719777004267,150.0,0.00011199,2]
[330779530,1719777004472,150.0,0.00011199,2]
[330779531,1719777004673,159.89396103,0.00011199,2]
[330779532,1719777006783,155.09203532,0.00011199,2]
[330779533,1719777011357,475.43641296,0.00011199,2]
[330779534,1719777015305,483.00146508,0.00011199,2]
[330779535,1719777028391,625.50090201,0.00011199,2]
[330779544,1719777031996,-433.177249,0.00012211,2]
[330779545,1719777032005,-64.21563457,0.00012273,2]
[330779546,1719777032018,-718.1980979,0.00012273,2]
[330779549,1719777032272,-1031.62934149,0.00012273,2]
[330779550,1719777032284,-268.07010932,0.00012273,2]
[330779551,1719777032296,-1283.33424322,0.00012273,2]
[330779552,1719777032308,-314.5393,0.00012273,2]
[330779553,1719777032320,-875.15807274,0.00012273,2]
[330779554,1719777032335,-299.25,0.00012273,2]
[330779560,1719777033824,265.41750039,0.00011199,2]
[330779563,1719777037969,-465.50057494,0.00012214,2]
[330779564,1719777037981,-1759.78312506,0.00012214,2]
[330779565,1719777037992,-1201.49441863,0.00012273,2]
[330779566,1719777038003,-384.42856235,0.00012273,2]
[330779567,1719777038013,-412.96604001,0.00012273,2]
[330779568,1719777038023,-1.82416607,0.00012273,2]
[330779569,1719777038308,-200.62028393,0.00012273,2]
[330779571,1719777038319,-450.07456747,0.00012273,2]
[330779573,1719777038328,-170.19931713,0.00012273,2]
[330779575,1719777038338,-150.0,0.00012274,2]
[330779577,1719777038347,-300.0,0.00012301,2]
[330779579,1719777038357,-300.0,0.00012301,2]
[330779581,1719777038366,-158.25040673,0.00012302,2]
[330779583,1719777038376,-206.15312302,0.00012302,2]
[330779585,1719777038386,-1052.54744035,0.00012302,2]
[330779587,1719777038395,-155.0,0.00012302,2]
[330779589,1719777038406,-753.00414089,0.00012302,2]
[330779590,1719777038415,-576.79273475,0.0001251,2]
[330779592,1719777038425,-178.45,0.00012766,2]
[330779594,1719777038439,-499.99,0.00012766,2]
[330779596,1719777038448,-408.65,0.00012795,2]
[330779598,1719777038458,-235.63,0.00012806,2]
[330779600,1719777038468,-250.0,0.00013027,2]
[330779602,1719777038477,-3917.97815333,0.00013247,2]
[330779605,1719777038489,-1642.6789177,0.00013247,2]
[330779607,1719777038501,-352.35292897,0.00013247,2]
[330779634,1719777038746,-321.0366011,0.00013319,2]
[330779636,1719777038762,-383.65,0.00013319,2]
[330779638,1719777038774,-261.9,0.00013319,2]
[330779639,1719777038785,-849.33,0.00013319,2]
[330779640,1719777038796,-325.82,0.00013319,2]
[330779641,1719777038820,-1283.0833989,0.00013319,2]
[330779642,1719777038830,-155.0,0.00013472,2]
[330779643,1719777038840,-283.76460163,0.00013516,2]
[330779644,1719777038849,-717.3917686,0.00013516,2]
[330779645,1719777038859,-1000.0,0.00013542,2]
[330779646,1719777038869,-847.13650724,0.00013543,2]
[330779647,1719777038879,-684.6855422,0.00013543,2]
[330779648,1719777038888,-257.88055068,0.00013574,4]
[330779649,1719777038898,-531.7055518,0.00013574,2]
[330779650,1719777038908,-3394.63522656,0.00013574,2]
[330779651,1719777038918,-191.36,0.00013699,2]
[330779652,1719777038928,-500.0,0.00013888,2]
[330779653,1719777038937,-182.08348635,0.00013899,2]
[330779655,1719777038948,-1454.98420156,0.000139,2]
[330779657,1719777038962,-1623.96990394,0.00013917,2]
[330779659,1719777038972,-283.87820514,0.00013917,2]
[330779661,1719777038982,-181.54243899,0.00013917,2]
[330779664,1719777038993,-2819.21598141,0.00013917,2]
[330779666,1719777039003,-14057.682635,0.00013987,2]
[330779668,1719777039016,-3863.4679224,0.00013987,2]
[330779670,1719777039028,-4724.71,0.00013987,2]
[330779672,1719777039042,-1775.18020249,0.00013987,2]
[330779674,1719777039056,-4216.37536217,0.00013987,2]
[330779677,1719777039068,-18040.39146227,0.00013987,2]
[330779679,1719777039078,-401.51943179,0.00013999,3]
[330779681,1719777039088,-500.0,0.00013999,3]
[330779683,1719777039099,-6432.1401752,0.00014,2]
[330779685,1719777039111,-17848.54770864,0.00014,2]
[330779687,1719777039123,-1751.43,0.00014,2]
[330779804,1719777040271,-17539.36886344,0.00013128,2]
[330779806,1719777040282,-217.49945755,0.00014,2]
[330779815,1719777040355,-581.62307989,0.00014,2]
[330779817,1719777040368,-19832.11977958,0.00014,2]
[330779819,1719777040380,-3255.0,0.00014,2]
[330779830,1719777040476,-0.13386494,0.00014,2]
[330779833,1719777040490,-1023.67332506,0.00014,2]
[330779835,1719777040503,-24690.2441784,0.00014,2]
[330779837,1719777040515,-4832.22556236,0.00014,2]
[330779861,1719777040735,-421.8,0.00014,2]
[330779864,1719777040748,-1312.5539506,0.00014,2]
[330780118,1719777043057,-155.0,0.00013472,2]
[330780121,1719777043066,-26666.11545556,0.00014,2]
[330780124,1719777043079,-5291.63783665,0.00014,2]
[330780130,1719777043120,-2129.66230494,0.00014,2]
[330780133,1719777043133,-611.71540633,0.00014,2]
[330780135,1719777043144,-3924.53627189,0.00014,2]
[330780137,1719777043155,-6517.10792,0.00014,2]
[330780139,1719777043167,-17365.33401791,0.00014,2]
[330780141,1719777043178,-1405.2,0.00014,2]
[330780147,1719777043212,-657.39973408,0.00014,2]
[330780150,1719777043224,-685.50165271,0.00014,2]
[330780151,1719777043236,-719.07075033,0.00014,2]
[330780154,1719777043247,-1016.1,0.00014,2]
[330780155,1719777043259,-300.08603421,0.00014,2]
[330780157,1719777043270,-10750.945965,0.00014,2]
[330780159,1719777043282,-405.5664405,0.00014,2]
[330780167,1719777043349,-783.75520737,0.00014,2]
[330780170,1719777043360,-991.95488652,0.00014,2]
[330780172,1719777043373,-1370.91809665,0.00014,2]
[330780173,1719777043384,-3641.67389993,0.00014,2]
[330780174,1719777043396,-764.825,0.00014,2]
[330780175,1719777043410,-635.69802414,0.00014,2]
[330780260,1719777046210,-6226.92900001,0.00014,2]
[330780261,1719777046221,-130816.44402015,0.00014,2]
[330780262,1719777046233,-1150.52,0.00014,2]
[330780263,1719777046466,-56262.796811,0.00014,2]
[330780264,1719777046476,-275.17,0.00014017,2]
[330780265,1719777046487,-262.05,0.00014109,3]
[330780266,1719777046496,-600.0,0.00014178,2]
[330780267,1719777046506,-1471.2321,0.00014187,2]
[330780268,1719777046516,-8046.95933082,0.00014228,2]
[330780269,1719777046526,-167.97127447,0.00014277,2]
[330780270,1719777046536,-24313.07669027,0.00014287,2]
[330780271,1719777046548,-16279.43812512,0.00014287,2]
[330780272,1719777046560,-752.775,0.00014287,2]
[330780273,1719777046571,-660.16000002,0.00014287,2]
[330780274,1719777046605,-29608.72670689,0.00014287,2]
[330780275,1719777046616,-26046.87249875,0.00014287,2]
[330780276,1719777046627,-9411.26014652,0.00014287,2]
[330780277,1719777046639,-25574.52361261,0.00014287,2]
[330780283,1719777310610,1719.96025146,0.00011199,2]
[330780284,1719777338466,1463.67371913,0.00011199,2]
[330780285,1719777361838,671.6187311,0.00011199,2]
[330780286,1719777364019,702.24261395,0.00011199,2]
[330780287,1719777364047,583.46994771,0.00011199,2]
[330780288,1719777374299,684.6855422,0.00011199,2]
[330780289,1719777421260,277.03532504,0.00011199,2]
[330780290,1719777425587,190.25389119,0.00011199,2]
[330780291,1719777426820,173.76628846,0.00011199,2]
[330780292,1719777429049,647.26467047,0.00011199,2]
[330780294,1719777438382,293.52980578,0.00011199,2]
[330780295,1719777439342,491.22811583,0.00011199,2]
[330780297,1719777446597,155.0,0.00011199,2]
[330780299,1719777457062,430.54118397,0.00011199,2]
[330780300,1719777462132,438.16706068,0.00011199,2]
[330780303,1719777468719,276.35696849,0.00011199,2]
[330780304,1719777471246,163.71199827,0.00011199,2]
[330780305,1719777473111,209.53287274,0.00011199,2]
[330780306,1719777474412,485.24402982,0.00011199,2]
[330780307,1719777479374,368.71565506,0.00011199,2]
[330780310,1719777486157,282.45723578,0.00011199,2]
[330780312,1719777492249,158.40486002,0.00011199,2]
[330780313,1719777499205,155.0,0.00011199,2]
[330780315,1719777516304,217.81272639,0.00011199,2]
[330780317,1719777527681,206.10156956,0.00011199,2]
[330780318,1719777538559,195.9976809,0.00011199,2]
[330780319,1719777547216,297.84066609,0.00011199,2]
[330780326,1719777622889,2617.88190555,0.00011199,2]
[330780327,1719777622916,3605.71672779,0.00011199,2]
[330780328,1719777626984,12311.51936233,0.00011199,2]
[330780332,1719777723579,2004.4104095,0.00011199,2]
[330780333,1719777747493,117713.60622514,0.00011199,2]
[330780334,1719777768783,720.86438453,0.00011199,2]
[330780335,1719777772074,647.26467047,0.00011199,2]
[330780340,1719777840073,155.13544744,0.00011199,2]
[330780341,1719777846342,167.79,0.00010374,2]
[330780342,1719777855031,1013.16514783,0.00011199,2]
[330780343,1719777856862,364.23336272,0.00011199,2]
[330780345,1719777916280,155.29010385,0.00011199,2]
[330780346,1719777922762,163.71199827,0.00011199,2]
[330780347,1719777924765,158.56160248,0.00011199,2]
[330780348,1719777927912,155.50596887,0.00011199,2]
[330780349,1719777949169,269.47073967,0.00011199,2]
[330780350,1719777956358,366.00199876,0.00011199,2]
[330780351,1719777957662,155.0,0.00011199,2]
[330780352,1719777973669,155.0,0.00011199,2]
[330780353,1719777985528,155.0,0.00011199,2]
[330780354,1719777996925,660.88004316,0.00011199,2]
[330780355,1719777999165,201.954167,0.00011199,2]
[330780356,1719778006875,277.40420016,0.00011199,2]
[330780357,1719778021721,155.0,0.00011199,2]
[330780358,1719778028284,155.1014532,0.00011199,2]
[330780359,1719778065006,3392.48845374,0.00011199,2]
[330780360,1719778067420,1717.78429592,0.00011199,2]
[330780362,1719778150164,-525.54,0.00011451,2]
[330780363,1719778150185,-2311.8115,0.00012111,2]
[330780368,1719778176075,1012.08948633,0.00011199,2]
[330780372,1719778209727,690.00328514,0.00011199,2]
[330780380,1719778232391,-180.15111946,0.00012273,2]
[330780381,1719778232400,-216.36764908,0.00012302,2]
[330780388,1719778232748,-255.99257949,0.00012302,2]
[330780390,1719778232758,-647.26467047,0.00012302,2]
[330780391,1719778232768,-51.98144035,0.00012302,2]
[330780394,1719778232781,-312.25192237,0.00012302,2]
[330780395,1719778232790,-39.70807763,0.00012961,2]
[330780396,1719778232806,-210.29192237,0.00012961,2]
[330780397,1719778232816,-23900.0,0.00013014,2]
[330780398,1719778232826,-388.56,0.00013062,2]
[330780399,1719778232835,-220.13,0.00013078,2]
[330780400,1719778232845,-163.71199827,0.00013128,2]
[330780401,1719778232855,-529.95804437,0.00013516,2]
[330780402,1719778232864,-150.99,0.00013543,2]
[330780403,1719778232873,-520.31171841,0.00013543,2]
[330780404,1719778232883,-235.85977765,0.00013574,2]
[330780405,1719778232892,-174.0,0.00013589,2]
[330780406,1719778232902,-3402.51,0.00013589,2]
[330780407,1719778232913,-200.06,0.00013699,2]
[330780408,1719778232923,-525.54,0.00013715,2]
[330780409,1719778232932,-19044.0,0.00013724,2]
[330780410,1719778232942,-339.31808863,0.00013989,2]
[330780411,1719778232951,-317.35168101,0.00013999,2]
[330780412,1719778232961,-500.0,0.00013999,3]
[330780413,1719778232970,-291.63082785,0.00013999,3]
[330780414,1719778232980,-158.80803918,0.00013999,3]
[330780415,1719778232990,-2247.15697919,0.00014,2]
[330780416,1719778232999,-500.0,0.00014173,2]
[330780417,1719778233009,-69340.0968,0.00014187,2]
[330780418,1719778233019,-1000.0,0.00014187,2]
[330780419,1719778233029,-2500.0,0.00014187,2]
[330780420,1719778233038,-2671.26250297,0.00014196,2]
[330780421,1719778233048,-226.74750375,0.00014196,2]
[330780422,1719778233056,-416.348641,0.00014247,2]
[330780423,1719778233066,-351.96,0.00014277,3]
[330780424,1719778233076,-410.19380747,0.00014286,3]
[330780425,1719778233086,-352.90432574,0.00014286,3]
[330780426,1719778233095,-500.0,0.00014286,3]
[330780427,1719778233105,-500.0,0.00014286,3]
[330780428,1719778233114,-500.0,0.00014286,3]
[330780429,1719778233124,-502.81,0.00014286,3]
[330780430,1719778233133,-207122.55802326,0.00014287,2]
[330780431,1719778233145,-3039.95,0.00014287,2]
[330780432,1719778233156,-301.665,0.00014287,2]
[330780433,1719778233168,-24865.4,0.00014287,2]
[330780434,1719778233215,3392.48845374,0.00011199,2]
[330780435,1719778238269,-1820.91912374,0.00014287,2]
[330780591,1719778240266,-1380.53141373,0.00014287,2]
[330780592,1719778240278,-2260.45717588,0.00014287,2]
[330780607,1719778240447,-70470.58836194,0.00014287,2]
[330780610,1719778240460,-5277.91856876,0.00014287,2]
[330780631,1719778240668,-795.01166931,0.00014287,2]
[330780634,1719778240680,-449.3685477,0.00014287,2]
[330780898,1719778243264,-310.0,0.00014287,2]
[330780902,1719778243277,-732.51196725,0.00014287,2]
[330780910,1719778243326,-432.0,0.00014287,2]
[330780913,1719778243339,-2385.14,0.00014287,2]
[330780916,1719778243350,-2295.6112263,0.00014287,2]
[330780920,1719778243362,-10636.84290607,0.00014287,2]
[330780925,1719778243383,-707.3898016,0.00014287,2]
[330780929,1719778243394,-21819.99370451,0.00014287,2]
[330780940,1719778243441,-2421.6,0.00014287,2]
[330780951,1719778243501,-3270.22817816,0.00014287,2]
[330780953,1719778243512,-616.8162,0.00014287,2]
[330780964,1719778243611,-264.02428774,0.00014287,2]
[330781177,1719778246340,-378.81590236,0.00013574,2]
[330781179,1719778246350,-561.06809164,0.00014287,2]
[330781180,1719778246400,-2347.40223909,0.00014287,2]
[330781181,1719778246460,-30000.06828,0.00014287,2]
[330781182,1719778246473,-1103.72916277,0.00014287,2]
[330781183,1719778246520,-146013.18838734,0.00014287,2]
[330781184,1719778246634,-777.38,0.00014287,2]
[330781185,1719778246645,-716.40258188,0.00014287,2]
[330781186,1719778246693,-770.5833249,0.00014287,2]
[330781196,1719778366507,167.79,0.00010528,2]
[330781198,1719778470194,202.0,0.0001499,30]
[330781199,1719778492055,5607.25543503,0.00010528,2]
[330781201,1719778505541,218.22798197,0.00010528,2]
[330781204,1719778674316,156.26034883,0.00011199,2]
[330781205,1719778711210,155.35535433,0.00011199,2]
[330781206,1719778725421,235.38273328,0.00011199,2]
[330781207,1719778728167,576.90886593,0.00011199,2]
[330781212,1719778962569,598.82,0.00010967,2]
[330781213,1719779027492,1629.3610437,0.00011199,2]
[330781214,1719779180554,165.03,0.00010179,2]
[330781217,1719779256769,437.83490328,0.00011199,2]
[330781218,1719779328505,403.23994901,0.00011199,2]
[330781219,1719779370074,1082.44353776,0.00011199,2]
[330781226,1719779393174,514.55074733,0.00011199,2]
[330781236,1719779431789,-428.32614833,0.00012185,2]
[330781237,1719779431801,-3614.08385167,0.00012185,2]
[330781238,1719779431810,-412.96604001,0.00012273,2]
[330781239,1719779431820,-276.48136532,0.00012273,2]
[330781240,1719779431830,-1000.0,0.00012302,2]
[330781241,1719779431840,-484.9491557,0.00012302,2]
[330781242,1719779431850,-155.0,0.00012302,2]
[330781243,1719779431859,-98.27706838,0.00012338,2]
[330781244,1719779431871,-586.40847382,0.00012338,2]
[330781245,1719779431881,-559.0,0.00012543,2]
[330781246,1719779431891,-559.0,0.00012546,2]
[330781247,1719779431902,-559.0,0.00012549,2]
[330781248,1719779431912,-559.0,0.00012553,2]
[330781249,1719779431921,-559.0,0.00012556,2]
[330781250,1719779431930,-559.0,0.00012559,2]
[330781251,1719779431940,-559.0,0.00012563,2]
[330781252,1719779431949,-559.0,0.00012566,2]
[330781253,1719779431959,-559.0,0.00012569,2]
[330781254,1719779431968,-300.0,0.00012571,2]
[330781255,1719779431977,-559.0,0.00012572,2]
[330781256,1719779431986,-559.0,0.00012576,2]
[330781257,1719779431995,-559.0,0.00012579,2]
[330781258,1719779432005,-559.0,0.00012582,2]
[330781259,1719779432015,-559.0,0.00012586,2]
[330781260,1719779432024,-559.0,0.00012589,2]
[330781261,1719779432034,-559.0,0.00012592,2]
[330781262,1719779432043,-559.0,0.00012595,2]
[330781263,1719779432053,-559.0,0.00012599,2]
[330781264,1719779432064,-559.0,0.00012602,2]
[330781265,1719779432074,-559.0,0.00012605,2]
[330781266,1719779432083,-250.0,0.0001263,2]
[330781267,1719779432092,-500.0,0.00012636,2]
[330781268,1719779432102,-169.74,0.00012659,2]
[330781269,1719779432111,-1007.88,0.00012786,2]
[330781270,1719779432120,-250.0,0.00012809,2]
[330781271,1719779432130,-763.12,0.00012819,2]
[330781273,1719779432139,-156.32,0.00012841,2]
[330781275,1719779432148,-689.95,0.00012841,2]
[330781277,1719779432158,-1000.0,0.00012845,2]
[330781278,1719779432167,-8752.30574766,0.00012853,2]
[330781279,1719779432251,-3071.91999903,0.00012853,2]
[330781280,1719779432294,-12075.77425331,0.00012853,2]
[330781281,1719779432304,-8249.87,0.00012858,2]
[330781282,1719779432313,-176.55,0.00013012,2]
[330781283,1719779432324,-177.0,0.00013079,2]
[330781284,1719779432332,-258.614328,0.00013128,2]
[330781285,1719779432342,-1164.2,0.00013146,2]
[330781286,1719779432361,-2128.38,0.00013146,2]
[330781287,1719779432372,-3104.9,0.00013146,2]
[330781288,1719779432382,-169.7,0.00013152,2]
[330781289,1719779432393,-598.82,0.00013231,2]
[330781290,1719779432403,-5224.0379,0.00013416,2]
[330781291,1719779432412,-150.0,0.00013488,2]
[330781292,1719779432422,-258.8272371,0.00013516,2]
[330781293,1719779432432,-2003.8715436,0.00013516,2]
[330781294,1719779432442,-2490.29099852,0.00013516,2]
[330781295,1719779432451,-280.63,0.00013699,2]
[330781296,1719779432460,-215.48,0.00013699,2]
[330781297,1719779432470,-524.1073643,0.00013849,2]
[330781298,1719779432479,-173.22,0.00014011,2]
[330781299,1719779432488,-646.49279203,0.00014099,2]
[330781300,1719779432497,-412.21116685,0.00014099,2]
[330781301,1719779432510,-146.98741151,0.00014099,2]
[330781302,1719779432519,-203.0,0.000141,2]
[330781303,1719779432529,-903.73067,0.0001414,2]
[330781304,1719779432538,-903.73067,0.0001414,2]
[330781305,1719779432547,-903.73068,0.0001414,2]
[330781306,1719779432556,-903.73068,0.0001414,2]
[330781307,1719779432566,-903.73068,0.0001414,2]
[330781308,1719779432575,-903.73067,0.0001414,2]
[330781309,1719779432584,-500.0,0.00014173,2]
[330781310,1719779432593,-155.0,0.00014187,2]
[330781311,1719779432602,-4022.7442,0.00014187,2]
[330781312,1719779432611,-1015.9578,0.00014187,2]
[330781313,1719779432621,-500.0,0.00014187,2]
[330781314,1719779432631,-602.7287,0.00014187,2]
[330781315,1719779432646,-3404.5372,0.00014187,2]
[330781316,1719779432656,-1000.0,0.00014187,2]
[330781317,1719779432665,-5126.0387,0.00014187,2]
[330781318,1719779432675,-23073.4131,0.00014187,2]
[330781319,1719779432686,-177.5368,0.00014187,2]
[330781320,1719779432695,-611.4179,0.00014187,2]
[330781321,1719779432705,-315.6806,0.00014187,2]
[330781322,1719779432714,-1000.0,0.00014187,2]
[330781323,1719779432724,-2375.8251,0.00014187,2]
[330781324,1719779432734,-220.28,0.00014192,2]
[330781325,1719779432743,-317.9416966,0.00014196,2]
[330781326,1719779432753,-757.06591536,0.00014196,2]
[330781327,1719779432763,-1876.13842518,0.00014196,2]
[330781328,1719779432773,-500.0,0.0001428,2]
[330781329,1719779432782,-500.0,0.00014286,3]
[330781330,1719779432792,-500.0,0.00014286,3]
[330781331,1719779432802,-500.0,0.00014286,3]
[330781332,1719779432812,-238.16014269,0.00014286,3]
[330781333,1719779432823,-500.0,0.00014286,3]
[330781334,1719779432832,-500.0,0.00014286,3]
[330781335,1719779432842,-282.98670217,0.00014286,3]
[330781336,1719779432853,-500.0,0.00014286,3]
[330781337,1719779432864,-500.0,0.00014286,3]
[330781338,1719779432875,-500.0,0.00014286,3]
[330781339,1719779432887,-500.0,0.00014286,3]
[330781340,1719779432898,-500.0,0.00014286,3]
[330781341,1719779432908,-505.62,0.00014286,3]
[330781342,1719779432917,-500.0,0.00014286,3]
[330781343,1719779432928,-418473.01138803,0.00014287,2]
[330781344,1719779432937,-2666.45497469,0.00014296,2]
[330781345,1719779432949,-243.57159997,0.00014393,2]
[330781346,1719779432959,-500.0,0.00014396,3]
[330781347,1719779432970,-264.52,0.00014396,3]
[330781348,1719779432980,-506.62302086,0.00014396,3]
[330781349,1719779432990,-500.0,0.00014396,3]
[330781350,1719779433000,-229.56978996,0.00014396,3]
[330781351,1719779433010,-188.6676056,0.00014396,3]
[330781352,1719779433020,-500.0,0.00014396,3]
[330781353,1719779433030,-1000.0,0.0001445,2]
[330781354,1719779433040,-788.1795791,0.00014499,2]
[330781355,1719779433049,-155.0,0.00014499,2]
[330781356,1719779433058,-203.88682512,0.00014499,2]
[330781357,1719779433069,-500.0,0.00014506,3]
[330781358,1719779433078,-420.62705509,0.00014506,3]
[330781359,1719779433088,-303.53,0.00014506,3]
[330781360,1719779433098,-732.042326,0.00014521,2]
[330781361,1719779433107,-203.0,0.000146,2]
[330781362,1719779433116,-332.07,0.00014615,3]
[330781363,1719779433126,-150.0,0.00014644,2]
[330781364,1719779433135,-150.0,0.00014648,2]
[330781365,1719779433145,-150.0,0.00014649,2]
[330781366,1719779433155,-150.0,0.0001465,2]
[330781367,1719779433165,-150.0,0.00014653,2]
[330781368,1719779433454,-150.0,0.00014653,2]
[330781369,1719779433465,-150.0,0.00014655,2]